{"text_format":"1","workbook":"xlsx","n_sheets":1,"sheets":["Rename files"],"not_rendered":{"charts":0,"images":0,"macros":1,"external_links":0,"defined_names":0,"comments":0,"pivot_tables":0},"unopened":[],"bounds":{"document_bytes":16777216,"sheet_cells":100000,"rows_first":2000,"rows_last":500,"rows_between":2000,"halvings":0,"cell_chars":16384,"cell_head_chars":4096},"cells_cut":0,"cells_raw":0,"read":"whole","date_system":"1900"}

{"sheet":"Rename files","index":0,"n_rows":141,"n_cols":4,"rows_kept":141,"cut":false,"hidden":false,"merged":[]}
["C:\\Website\\100op1.htm",{"$f":"LEFT(A1,LEN(A1)-4)&$D$3&RIGHT(A1,4)","v":"C:\\Website\\100op1 bis.htm"}]
["C:\\Website\\agathachristie.htm",{"$f":"LEFT(A2,LEN(A2)-4)&$D$3&RIGHT(A2,4)","v":"C:\\Website\\agathachristie bis.htm"},null,"insert this after each file name (insert space if desired)"]
["C:\\Website\\alleszoeken.htm","C:\\Website\\alleszoeken bis.htm",null," bis"]
["C:\\Website\\archief\\boerenbond0506.xls","C:\\Website\\archief\\boerenbond0506 bis.xls"]
["C:\\Website\\archief\\bots0506.xls","C:\\Website\\archief\\bots0506 bis.xls"]
["C:\\Website\\archief\\botsverslagen0506.doc","C:\\Website\\archief\\botsverslagen0506 bis.doc"]
["C:\\Website\\archief\\eindronde0506.xls","C:\\Website\\archief\\eindronde0506 bis.xls",null,"Wim Gielis"]
["C:\\Website\\archief\\italiaanseavond2006.doc","C:\\Website\\archief\\italiaanseavond2006 bis.doc",null,"2007-05-06"]
["C:\\Website\\archief\\kalender0506.xls","C:\\Website\\archief\\kalender0506 bis.xls",null,{"$f":"HYPERLINK(\"http://www.wimgielis.be\",\"Website\")","v":"Website"}]
["C:\\Website\\archief\\lierse0506.xls","C:\\Website\\archief\\lierse0506 bis.xls"]
["C:\\Website\\archief\\lucyvo0506.xls","C:\\Website\\archief\\lucyvo0506 bis.xls"]
["C:\\Website\\archief\\lucyvoverslagen'05-'06.doc","C:\\Website\\archief\\lucyvoverslagen'05-'06 bis.doc"]
["C:\\Website\\archief\\wistjedat.zip","C:\\Website\\archief\\wistjedat bis.zip"]
["C:\\Website\\atletiek.htm","C:\\Website\\atletiek bis.htm"]
["C:\\Website\\automatischsorteren.htm","C:\\Website\\automatischsorteren bis.htm"]
["C:\\Website\\bijlessen.htm","C:\\Website\\bijlessen bis.htm"]
["C:\\Website\\boerenbond.htm","C:\\Website\\boerenbond bis.htm"]
["C:\\Website\\bots.htm","C:\\Website\\bots bis.htm"]
["C:\\Website\\cellensamenvoegen.htm","C:\\Website\\cellensamenvoegen bis.htm"]
["C:\\Website\\dartsleguitgooien.htm","C:\\Website\\dartsleguitgooien bis.htm"]
["C:\\Website\\databasefuncties.htm","C:\\Website\\databasefuncties bis.htm"]
["C:\\Website\\donatie.htm","C:\\Website\\donatie bis.htm"]
["C:\\Website\\dubbelegrafiekas.htm","C:\\Website\\dubbelegrafiekas bis.htm"]
["C:\\Website\\eee.htm","C:\\Website\\eee bis.htm"]
["C:\\Website\\evolutiegrafiek.htm","C:\\Website\\evolutiegrafiek bis.htm"]
["C:\\Website\\excel.htm","C:\\Website\\excel bis.htm"]
["C:\\Website\\excellinks.htm","C:\\Website\\excellinks bis.htm"]
["C:\\Website\\faq1.htm","C:\\Website\\faq1 bis.htm"]
["C:\\Website\\figurentellen.htm","C:\\Website\\figurentellen bis.htm"]
["C:\\Website\\filmpjesenlinks.htm","C:\\Website\\filmpjesenlinks bis.htm"]
["C:\\Website\\formule1.htm","C:\\Website\\formule1 bis.htm"]
["C:\\Website\\forumposts.htm","C:\\Website\\forumposts bis.htm"]
["C:\\Website\\fotoshernoemen.htm","C:\\Website\\fotoshernoemen bis.htm"]
["C:\\Website\\fun.htm","C:\\Website\\fun bis.htm"]
["C:\\Website\\gastenboek.htm","C:\\Website\\gastenboek bis.htm"]
["C:\\Website\\geldbedraguitsplitsen.htm","C:\\Website\\geldbedraguitsplitsen bis.htm"]
["C:\\Website\\grafiekenuitlijnen.htm","C:\\Website\\grafiekenuitlijnen bis.htm"]
["C:\\Website\\grappenengrollen.htm","C:\\Website\\grappenengrollen bis.htm"]
["C:\\Website\\home.htm","C:\\Website\\home bis.htm"]
["C:\\Website\\internetspellen.htm","C:\\Website\\internetspellen bis.htm"]
["C:\\Website\\jamesbond.htm","C:\\Website\\jamesbond bis.htm"]
["C:\\Website\\kalender.htm","C:\\Website\\kalender bis.htm"]
["C:\\Website\\lierse.htm","C:\\Website\\lierse bis.htm"]
["C:\\Website\\links.htm","C:\\Website\\links bis.htm"]
["C:\\Website\\lucyvo.htm","C:\\Website\\lucyvo bis.htm"]
["C:\\Website\\muziek.htm","C:\\Website\\muziek bis.htm"]
["C:\\Website\\muziekbestand.htm","C:\\Website\\muziekbestand bis.htm"]
["C:\\Website\\normaliteit.htm","C:\\Website\\normaliteit bis.htm"]
["C:\\Website\\oneliners.htm","C:\\Website\\oneliners bis.htm"]
["C:\\Website\\opdrachten.htm","C:\\Website\\opdrachten bis.htm"]
["C:\\Website\\oplosser.htm","C:\\Website\\oplosser bis.htm"]
["C:\\Website\\opmerkingen-code.htm","C:\\Website\\opmerkingen-code bis.htm"]
["C:\\Website\\overzichtxlbestanden.htm","C:\\Website\\overzichtxlbestanden bis.htm"]
["C:\\Website\\paginanummer.htm","C:\\Website\\paginanummer bis.htm"]
["C:\\Website\\persoonlijk.htm","C:\\Website\\persoonlijk bis.htm"]
["C:\\Website\\postcount.htm","C:\\Website\\postcount bis.htm"]
["C:\\Website\\professioneel.htm","C:\\Website\\professioneel bis.htm"]
["C:\\Website\\professionelegrafieken.htm","C:\\Website\\professionelegrafieken bis.htm"]
["C:\\Website\\rodeduivels.htm","C:\\Website\\rodeduivels bis.htm"]
["C:\\Website\\romeinsarabisch.htm","C:\\Website\\romeinsarabisch bis.htm"]
["C:\\Website\\schoonbelekes.htm","C:\\Website\\schoonbelekes bis.htm"]
["C:\\Website\\snelmenuuitbreiden.htm","C:\\Website\\snelmenuuitbreiden bis.htm"]
["C:\\Website\\sorterenineencel.htm","C:\\Website\\sorterenineencel bis.htm"]
["C:\\Website\\sport.htm","C:\\Website\\sport bis.htm"]
["C:\\Website\\stopwatch.htm","C:\\Website\\stopwatch bis.htm"]
["C:\\Website\\styling.css",{"$f":"LEFT(A66,LEN(A66)-4)&$D$3&RIGHT(A66,4)","v":"C:\\Website\\styling bis.css"}]
["C:\\Website\\tekstfunctiescelzoeken.htm","C:\\Website\\tekstfunctiescelzoeken bis.htm"]
["C:\\Website\\tennis.htm","C:\\Website\\tennis bis.htm"]
["C:\\Website\\tijdloze100.htm","C:\\Website\\tijdloze100 bis.htm"]
["C:\\Website\\tips1.htm","C:\\Website\\tips1 bis.htm"]
["C:\\Website\\tips2.htm","C:\\Website\\tips2 bis.htm"]
["C:\\Website\\vanplaatswisselen.htm","C:\\Website\\vanplaatswisselen bis.htm"]
["C:\\Website\\vbacode.htm","C:\\Website\\vbacode bis.htm"]
["C:\\Website\\voetbal.htm","C:\\Website\\voetbal bis.htm"]
["C:\\Website\\vokleurstaaf.htm","C:\\Website\\vokleurstaaf bis.htm"]
["C:\\Website\\voorbeeldbestanden.htm","C:\\Website\\voorbeeldbestanden bis.htm"]
["C:\\Website\\vraagenantwoord.htm","C:\\Website\\vraagenantwoord bis.htm"]
["C:\\Website\\wielrennen.htm","C:\\Website\\wielrennen bis.htm"]
["C:\\Website\\wimgielis.htm","C:\\Website\\wimgielis bis.htm"]
["C:\\Website\\woordzoeker.htm","C:\\Website\\woordzoeker bis.htm"]
["C:\\Website\\xlwdfiles\\addeverything.xls","C:\\Website\\xlwdfiles\\addeverything bis.xls"]
["C:\\Website\\xlwdfiles\\agathachristie.xls","C:\\Website\\xlwdfiles\\agathachristie bis.xls"]
["C:\\Website\\xlwdfiles\\alleszoeken.xls","C:\\Website\\xlwdfiles\\alleszoeken bis.xls"]
["C:\\Website\\xlwdfiles\\augustus2006.doc","C:\\Website\\xlwdfiles\\augustus2006 bis.doc"]
["C:\\Website\\xlwdfiles\\australianopen2005.zip","C:\\Website\\xlwdfiles\\australianopen2005 bis.zip"]
["C:\\Website\\xlwdfiles\\australianopen2006.zip","C:\\Website\\xlwdfiles\\australianopen2006 bis.zip"]
["C:\\Website\\xlwdfiles\\australianopen2007.zip","C:\\Website\\xlwdfiles\\australianopen2007 bis.zip"]
["C:\\Website\\xlwdfiles\\automatischsorteren.xls","C:\\Website\\xlwdfiles\\automatischsorteren bis.xls"]
["C:\\Website\\xlwdfiles\\avondjeuit2007.doc","C:\\Website\\xlwdfiles\\avondjeuit2007 bis.doc"]
["C:\\Website\\xlwdfiles\\bbq2006.doc","C:\\Website\\xlwdfiles\\bbq2006 bis.doc"]
["C:\\Website\\xlwdfiles\\boerenbond.xls","C:\\Website\\xlwdfiles\\boerenbond bis.xls"]
["C:\\Website\\xlwdfiles\\bond.xls","C:\\Website\\xlwdfiles\\bond bis.xls"]
["C:\\Website\\xlwdfiles\\bots.xls","C:\\Website\\xlwdfiles\\bots bis.xls"]
["C:\\Website\\xlwdfiles\\botsverslagen.doc","C:\\Website\\xlwdfiles\\botsverslagen bis.doc"]
["C:\\Website\\xlwdfiles\\cellensamenvoegen.xls","C:\\Website\\xlwdfiles\\cellensamenvoegen bis.xls"]
["C:\\Website\\xlwdfiles\\cvapr2007.doc","C:\\Website\\xlwdfiles\\cvapr2007 bis.doc"]
["C:\\Website\\xlwdfiles\\databasefuncties.xls","C:\\Website\\xlwdfiles\\databasefuncties bis.xls"]
["C:\\Website\\xlwdfiles\\dubbelehorizontaleas.xls","C:\\Website\\xlwdfiles\\dubbelehorizontaleas bis.xls"]
["C:\\Website\\xlwdfiles\\eee.zip","C:\\Website\\xlwdfiles\\eee bis.zip"]
["C:\\Website\\xlwdfiles\\evolutiegrafiek.xls","C:\\Website\\xlwdfiles\\evolutiegrafiek bis.xls"]
["C:\\Website\\xlwdfiles\\extragrafiek.doc","C:\\Website\\xlwdfiles\\extragrafiek bis.doc"]
["C:\\Website\\xlwdfiles\\findthefigure.zip","C:\\Website\\xlwdfiles\\findthefigure bis.zip"]
["C:\\Website\\xlwdfiles\\finishadartleg.xls","C:\\Website\\xlwdfiles\\finishadartleg bis.xls"]
["C:\\Website\\xlwdfiles\\formule1.xls","C:\\Website\\xlwdfiles\\formule1 bis.xls"]
["C:\\Website\\xlwdfiles\\fotoshernoemen.xls","C:\\Website\\xlwdfiles\\fotoshernoemen bis.xls"]
["C:\\Website\\xlwdfiles\\grafiekenuitlijnen.xls","C:\\Website\\xlwdfiles\\grafiekenuitlijnen bis.xls"]
["C:\\Website\\xlwdfiles\\grandslams.xls","C:\\Website\\xlwdfiles\\grandslams bis.xls"]
["C:\\Website\\xlwdfiles\\guitarsolos.xls","C:\\Website\\xlwdfiles\\guitarsolos bis.xls"]
["C:\\Website\\xlwdfiles\\januari2007.doc","C:\\Website\\xlwdfiles\\januari2007 bis.doc"]
["C:\\Website\\xlwdfiles\\juli2006.doc","C:\\Website\\xlwdfiles\\juli2006 bis.doc"]
["C:\\Website\\xlwdfiles\\kalender.xls","C:\\Website\\xlwdfiles\\kalender bis.xls"]
["C:\\Website\\xlwdfiles\\karakterstellen.xls","C:\\Website\\xlwdfiles\\karakterstellen bis.xls"]
["C:\\Website\\xlwdfiles\\lierse.xls","C:\\Website\\xlwdfiles\\lierse bis.xls"]
["C:\\Website\\xlwdfiles\\lucyvo.xls","C:\\Website\\xlwdfiles\\lucyvo bis.xls"]
["C:\\Website\\xlwdfiles\\lucyvoverslagen.doc","C:\\Website\\xlwdfiles\\lucyvoverslagen bis.doc"]
["C:\\Website\\xlwdfiles\\meligemopjes.zip","C:\\Website\\xlwdfiles\\meligemopjes bis.zip"]
["C:\\Website\\xlwdfiles\\moneysplitup.xls","C:\\Website\\xlwdfiles\\moneysplitup bis.xls"]
["C:\\Website\\xlwdfiles\\muzieklijst.xls","C:\\Website\\xlwdfiles\\muzieklijst bis.xls"]
["C:\\Website\\xlwdfiles\\normaalverdeling.xls","C:\\Website\\xlwdfiles\\normaalverdeling bis.xls"]
["C:\\Website\\xlwdfiles\\november2006.doc","C:\\Website\\xlwdfiles\\november2006 bis.doc"]
["C:\\Website\\xlwdfiles\\oplosser.xls","C:\\Website\\xlwdfiles\\oplosser bis.xls"]
["C:\\Website\\xlwdfiles\\opmerkingen.xls","C:\\Website\\xlwdfiles\\opmerkingen bis.xls"]
["C:\\Website\\xlwdfiles\\paginanummer.xls","C:\\Website\\xlwdfiles\\paginanummer bis.xls"]
["C:\\Website\\xlwdfiles\\postcount.xls","C:\\Website\\xlwdfiles\\postcount bis.xls"]
["C:\\Website\\xlwdfiles\\professionelegrafieken.xls","C:\\Website\\xlwdfiles\\professionelegrafieken bis.xls"]
["C:\\Website\\xlwdfiles\\recordsatletiek.xls","C:\\Website\\xlwdfiles\\recordsatletiek bis.xls"]
["C:\\Website\\xlwdfiles\\recordszwemmen.xls","C:\\Website\\xlwdfiles\\recordszwemmen bis.xls"]
["C:\\Website\\xlwdfiles\\rodeduivelsek08.xls","C:\\Website\\xlwdfiles\\rodeduivelsek08 bis.xls"]
["C:\\Website\\xlwdfiles\\rolandgarros2005.zip","C:\\Website\\xlwdfiles\\rolandgarros2005 bis.zip"]
["C:\\Website\\xlwdfiles\\rolandgarros2006.zip",{"$f":"LEFT(A130,LEN(A130)-4)&$D$3&RIGHT(A130,4)","v":"C:\\Website\\xlwdfiles\\rolandgarros2006 bis.zip"}]
["C:\\Website\\xlwdfiles\\snelmenuuitbreiden.xls","C:\\Website\\xlwdfiles\\snelmenuuitbreiden bis.xls"]
["C:\\Website\\xlwdfiles\\stopwatch.xls","C:\\Website\\xlwdfiles\\stopwatch bis.xls"]
["C:\\Website\\xlwdfiles\\usopen2005.zip","C:\\Website\\xlwdfiles\\usopen2005 bis.zip"]
["C:\\Website\\xlwdfiles\\usopen2006.zip","C:\\Website\\xlwdfiles\\usopen2006 bis.zip"]
["C:\\Website\\xlwdfiles\\voorwaardelijkeopmaakinstaafdiagram.xls","C:\\Website\\xlwdfiles\\voorwaardelijkeopmaakinstaafdiagram bis.xls"]
["C:\\Website\\xlwdfiles\\wielrennen.xls","C:\\Website\\xlwdfiles\\wielrennen bis.xls"]
["C:\\Website\\xlwdfiles\\wimbledon2005.zip","C:\\Website\\xlwdfiles\\wimbledon2005 bis.zip"]
["C:\\Website\\xlwdfiles\\wimbledon2006.zip","C:\\Website\\xlwdfiles\\wimbledon2006 bis.zip"]
["C:\\Website\\xlwdfiles\\woordzoeker.xls","C:\\Website\\xlwdfiles\\woordzoeker bis.xls"]
["C:\\Website\\zelfdeverjaardag.htm","C:\\Website\\zelfdeverjaardag bis.htm"]
["C:\\Website\\zwemmen.htm","C:\\Website\\zwemmen bis.htm"]